bitfinex-derivatives/quotes_BTCF0:USTF0_20210708
["timestamp","ask_amount","ask_price","bid_price","bid_amount"]
[1625772739950,0.24057544,32905.0,32904.0,0.76480689]
[1625772742276,0.24057544,32905.0,32904.0,0.48474689]
[1625772742877,0.95443623,32905.0,32904.0,0.48474689]
[1625772743177,2.02514922,32905.0,32904.0,0.48474689]
[1625772744078,0.95443623,32905.0,32904.0,0.48474689]
[1625772744752,0.95443623,32905.0,32904.0,0.75148689]
[1625772744905,0.24057544,32905.0,32904.0,0.75148689]
[1625772746104,0.24057544,32905.0,32904.0,0.48474689]
[1625772746561,1.2488686,32905.0,32904.0,0.48474689]
[1625772746856,2.32052994,32905.0,32900.0,0.24057544]
[1625772747006,2.32052994,32905.0,32898.0,0.24956604]
[1625772747007,0.71453104,32902.0,32898.0,0.0089906]
[1625772747155,4.2415,32900.0,32895.0,0.0046]
[1625772747306,0.35740062,32899.0,32895.0,0.0046]
[1625772747606,0.35740062,32899.0,32896.0,0.00359687]
[1625772747907,0.35741017,32898.0,32896.0,0.00359687]
[1625772748132,1.43640346,32897.0,32893.0,0.00359708]
[1625772748358,0.35743532,32894.0,32893.0,0.00359708]
[1625772748506,0.35743532,32894.0,32890.0,0.00359704]
[1625772748656,0.35743532,32894.0,32889.0,1.16796804]
[1625772748657,0.35743532,32894.0,32893.0,0.00359712]
[1625772748955,0.35743532,32894.0,32890.0,0.00359714]
[1625772749257,0.35743532,32894.0,32893.0,0.00359714]
[1625772749557,0.71479234,32895.0,32891.0,0.00359719]
[1625772749706,0.35746349,32893.0,32886.0,0.34064761]
[1625772750081,0.35746349,32893.0,32887.0,0.00359729]
[1625772750232,0.0046,32892.0,32887.0,0.00359729]
[1625772750910,0.0046,32892.0,32887.0,0.33524454]
[1625772751209,0.35750296,32894.0,32887.0,0.33524454]
[1625772751210,0.0046,32893.0,32887.0,0.33524454]
[1625772751359,0.0046,32893.0,32888.0,0.00359723]
[1625772752034,0.24057544,32890.0,32889.0,0.24057544]
[1625772752184,0.49247544,32890.0,32889.0,0.24057544]
[1625772752489,0.49247544,32890.0,32889.0,0.24417251]
[1625772754139,0.73305088,32890.0,32889.0,0.24417251]
[1625772756998,0.73305088,32890.0,32889.0,0.74129135]
[1625772757146,0.73305088,32890.0,32889.0,0.40987879]
[1625772757447,0.73305088,32890.0,32889.0,0.24417251]
[1625772758648,0.73305088,32890.0,32889.0,0.00359707]
[1625772759551,0.73305088,32890.0,32888.0,0.00359728]
[1625772759850,0.73305088,32890.0,32887.0,0.00359725]
[1625772760149,0.24057544,32889.0,32886.0,0.00359727]
[1625772760376,0.24057544,32889.0,32888.0,0.00359721]
[1625772760675,0.24057544,32889.0,32886.0,0.00359727]
[1625772760899,0.24057544,32889.0,32888.0,0.00359727]
[1625772761275,0.24057544,32889.0,32886.0,0.00359736]
[1625772761428,0.41947424,32889.0,32888.0,0.0035974]
[1625772761576,0.77709189,32889.0,32888.0,0.0035974]
[1625772761727,0.77709189,32889.0,32886.0,0.00359744]
[1625772762403,0.17890777,32888.0,32885.0,0.24057544]
[1625772762552,0.18350777,32888.0,32887.0,0.00359743]
[1625772762779,0.18350777,32888.0,32886.0,0.00359749]
[1625772763079,0.54114717,32888.0,32886.0,0.00359749]
[1625772763679,0.53658302,32887.0,32886.0,0.00359749]
[1625772763828,0.53658302,32887.0,32883.0,0.00359801]
[1625772763982,2.32421568,32887.0,32883.0,0.00359801]
[1625772764132,0.24057544,32884.0,32883.0,0.00359801]
[1625772764279,0.77717407,32884.0,32883.0,0.00359801]
[1625772764729,0.77717407,32884.0,32879.0,0.24057544]
[1625772764880,0.78177407,32884.0,32879.0,0.24057544]
[1625772765030,0.78177407,32884.0,32883.0,0.00359796]
[1625772765182,1.13923858,32884.0,32880.0,0.00359805]
[1625772765407,0.1789229,32882.0,32880.0,0.00359805]
[1625772765630,0.4596429,32882.0,32880.0,0.00359805]
[1625772766082,0.24517544,32881.0,32880.0,0.00359805]
[1625772768782,0.24517544,32881.0,32877.0,0.00359837]
[1625772768935,0.42404809,32881.0,32877.0,0.00359837]
[1625772769084,0.42404809,32881.0,32876.0,0.00359834]
[1625772769384,0.42404809,32881.0,32878.0,0.00359834]
[1625772769533,0.0046,32880.0,32878.0,0.00359834]
[1625772769685,0.0046,32880.0,32877.0,0.00359836]
[1625772769833,0.0046,32880.0,32879.0,0.0035984]
[1625772770134,0.24517544,32880.0,32876.0,0.00359843]
[1625772770435,0.24517544,32880.0,32879.0,0.00359845]
[1625772770736,0.24517544,32880.0,32877.0,0.00359845]
[1625772770887,0.24517544,32880.0,32879.0,0.00359845]
[1625772771111,0.33627544,32880.0,32879.0,0.00359845]
[1625772771260,0.33627544,32880.0,32876.0,0.00359842]
[1625772771411,0.33627544,32880.0,32879.0,0.00359842]
[1625772771713,0.33627544,32880.0,32876.0,0.00359842]
[1625772772011,0.33627544,32880.0,32879.0,0.00359842]
[1625772772311,0.33627544,32880.0,32877.0,0.00359844]
[1625772772462,0.33627544,32880.0,32879.0,0.00359842]
[1625772772763,0.33627544,32880.0,32876.0,0.00359831]
[1625772773064,0.0046,32879.0,32876.0,0.00359831]
[1625772774189,0.24057544,32877.0,32876.0,0.16939389]
[1625772774491,0.24057544,32877.0,32876.0,0.50088354]
[1625772775165,0.24057544,32877.0,32876.0,0.50987919]
[1625772775466,0.24057544,32877.0,32876.0,0.84107912]
[1625772776068,0.24057544,32877.0,32876.0,0.83208347]
[1625772776218,0.24057544,32877.0,32876.0,0.50108342]
[1625772776669,0.24057544,32877.0,32876.0,0.50140985]
[1625772777270,0.24057544,32877.0,32876.0,1.16523298]
[1625772777645,0.24057544,32877.0,32876.0,1.17422849]
[1625772777871,0.24057544,32877.0,32876.0,0.51040536]
[1625772778172,0.24057544,32877.0,32876.0,0.50140985]
[1625772779072,0.24057544,32877.0,32876.0,0.50167981]
[1625772779373,0.24057544,32877.0,32876.0,0.83364763]
[1625772779526,0.24057544,32877.0,32876.0,0.84264312]
[1625772779823,0.24057544,32877.0,32876.0,0.83364763]
[1625772780950,0.24057544,32877.0,32876.0,0.50175715]
[1625772781325,0.24057544,32877.0,32876.0,0.16970282]
[1625772781551,0.24057544,32877.0,32876.0,0.50190489]
[1625772782156,0.24057544,32877.0,32876.0,0.51090045]
[1625772782301,0.24057544,32877.0,32876.0,1.17441594]
[1625772782600,0.24057544,32877.0,32876.0,2.16979008]
[1625772784479,0.24057544,32877.0,32876.0,1.17441594]
[1625772784781,0.24057544,32877.0,32876.0,2.16975902]
[1625772791762,0.24057544,32877.0,32876.0,1.17441594]
[1625772792513,0.24057544,32877.0,32876.0,2.17436041]
[1625772794991,0.24057544,32877.0,32876.0,3.3398396]
[1625772795665,0.24057544,32880.0,32876.0,4.67107525]
[1625772795966,0.24057544,32880.0,32879.0,3.32722797]
[1625772796115,0.24057544,32880.0,32879.0,3.58540797]
[1625772796265,0.24057544,32880.0,32879.0,3.83857557]
[1625772797093,0.24057544,32880.0,32879.0,5.17057538]
[1625772797542,0.24057544,32889.0,32879.0,5.17057538]
[1625772797845,0.24057544,32889.0,32888.0,0.4990124]
[1625772797996,0.24057544,32889.0,32888.0,1.43948889]
[1625772798295,0.24057544,32889.0,32888.0,1.92063977]
[1625772798446,0.24057544,32889.0,32888.0,2.93059971]
[1625772798596,0.24057544,32889.0,32888.0,6.99929971]
[1625772798895,0.24057544,32892.0,32888.0,6.99929971]
[1625772799199,0.24057544,32892.0,32890.0,0.24970004]
[1625772799347,0.24057544,32892.0,32890.0,0.58274818]
[1625772799648,0.24057544,32892.0,32890.0,0.08323335]
[1625772799798,0.24057544,32892.0,32891.0,0.00359721]
[1625772800099,0.33013135,32892.0,32891.0,0.00359721]
[1625772800250,0.33013135,32892.0,32890.0,0.00359742]
[1625772800399,0.86676396,32892.0,32890.0,0.00359742]
[1625772800774,0.26867765,32891.0,32890.0,0.00359742]
[1625772801074,0.86694033,32892.0,32890.0,0.00359742]
[1625772801223,0.86694033,32892.0,32890.0,0.91436083]
[1625772801224,0.24057544,32892.0,32890.0,0.91436083]
[1625772801524,0.24057544,32892.0,32891.0,0.0832679]
[1625772801673,0.24057544,32892.0,32891.0,0.08686514]
[1625772802048,0.24057544,32892.0,32891.0,0.58626635]
[1625772802349,0.24057544,32892.0,32891.0,0.08686514]
[1625772802648,0.24057544,32892.0,32891.0,0.50319174]
[1625772802949,0.24057544,32892.0,32891.0,1.17830491]
[1625772803249,0.24057544,32892.0,32891.0,0.8452817]
[1625772803400,0.24057544,32892.0,32891.0,0.26251288]
[1625772803699,0.24057544,32892.0,32891.0,0.25351998]
[1625772804000,0.86735526,32892.0,32891.0,0.00359724]
[1625772804149,0.77753655,32892.0,32891.0,0.00359724]
[1625772804449,0.77772128,32892.0,32891.0,0.00359724]
[1625772804750,0.86740216,32892.0,32891.0,0.25365384]
[1625772804901,0.86740216,32892.0,32891.0,0.08694944]
[1625772805201,0.50936458,32892.0,32891.0,0.25367174]
[1625772806176,0.86754248,32892.0,32891.0,0.25367174]
[1625772806325,1.13593476,32892.0,32891.0,0.00359724]
[1625772806628,0.77775686,32892.0,32891.0,0.00359724]
[1625772806780,2.56899874,32892.0,32891.0,0.00359724]
[1625772807156,3.82285803,32892.0,32890.0,0.0035977]
[1625772807305,0.53751269,32891.0,32890.0,0.0035977]
[1625772807456,2.32898283,32891.0,32890.0,0.0035977]
[1625772807608,3.58296263,32891.0,32890.0,0.0035977]
[1625772808063,2.32898283,32891.0,32890.0,0.0035977]
[1625772808357,0.53751269,32891.0,32890.0,0.25422221]
[1625772808657,0.89588553,32891.0,32890.0,0.58835837]
[1625772808806,0.89588553,32891.0,32890.0,0.50481687]
[1625772809107,0.89588553,32891.0,32890.0,0.51381054]
[1625772809257,1.07516491,32891.0,32890.0,0.51381054]
[1625772809558,1.07516491,32891.0,32890.0,0.51459722]
[1625772809559,0.62738152,32891.0,32890.0,0.51459722]
[1625772809932,0.26900868,32891.0,32890.0,1.1748988]
[1625772810233,0.53766859,32891.0,32890.0,0.50571068]
[1625772810534,0.53766859,32891.0,32890.0,0.09630786]
[1625772810535,1.25412717,32891.0,32890.0,0.09630786]
[1625772810683,5.81172717,32891.0,32890.0,0.09630786]
[1625772810985,5.81172717,32891.0,32890.0,0.0035977]
[1625772811736,7.14225157,32891.0,32890.0,0.0035977]
[1625772812487,8.39630116,32891.0,32890.0,0.0035977]
[1625772812789,9.82956668,32891.0,32890.0,0.0035977]
[1625772813539,9.82956668,32891.0,32885.0,0.25980335]
[1625772813844,2.32964082,32886.0,32883.0,0.58622661]
[1625772813990,2.32975453,32884.0,32881.0,0.25148688]
[1625772814139,2.66544453,32884.0,32881.0,0.25148688]
[1625772814290,2.66544453,32884.0,32881.0,0.2604825]
[1625772814440,0.72172632,32882.0,32881.0,0.25148688]
[1625772814743,3.05162615,32882.0,32881.0,0.00359835]
[1625772815041,4.30620866,32882.0,32881.0,0.00359835]
[1625772815341,4.30620866,32882.0,32880.0,0.00359842]
[1625772815491,2.3300568,32881.0,32880.0,0.00359842]
[1625772816391,2.3300568,32881.0,32879.0,0.00359829]
[1625772816544,1.25471489,32881.0,32880.0,0.25173616]
[1625772816691,1.25471489,32881.0,32879.0,0.84271882]
[1625772816692,2.33023708,32881.0,32879.0,0.08755213]
[1625772816917,1.25490679,32880.0,32879.0,0.25544079]
[1625772817067,1.25490679,32880.0,32879.0,0.2518425]
[1625772817216,1.25950679,32880.0,32879.0,0.59119469]
[1625772817367,1.25950679,32880.0,32879.0,0.2554409]
[1625772817892,2.33499597,32880.0,32879.0,0.08755224]
[1625772818418,2.33039597,32880.0,32875.0,1.04944701]
[1625772818570,2.83039597,32880.0,32875.0,0.83844701]
[1625772818717,2.83039597,32880.0,32873.0,0.16794783]
[1625772818718,1.07555817,32876.0,32873.0,0.16794783]
[1625772818868,1.25485735,32874.0,32871.0,0.2929]
[1625772819019,2.68895443,32874.0,32871.0,0.2929]
[1625772819167,1.25502061,32873.0,32871.0,0.2929]
[1625772819318,1.25502061,32873.0,32872.0,0.00359967]
[1625772819470,1.43435952,32873.0,32872.0,0.00359967]
[1625772819621,1.43895952,32873.0,32870.0,0.00359991]
[1625772819771,2.6940775,32873.0,32870.0,0.00359991]
[1625772819920,1.25513028,32871.0,32865.0,0.00359996]
[1625772820219,1.25513028,32871.0,32861.0,2.27199722]
[1625772820220,1.25422453,32870.0,32862.0,0.00899997]
[1625772820370,0.72172632,32863.0,32862.0,0.00899997]
[1625772820519,1.00562632,32863.0,32862.0,0.00899997]
[1625772820669,1.00562632,32863.0,32862.0,0.01260008]
[1625772821122,1.00562632,32863.0,32862.0,1.18972408]
[1625772821424,1.00562632,32863.0,32862.0,2.53351487]
[1625772821572,0.72172632,32863.0,32862.0,2.53351487]
[1625772822022,0.24057544,32865.0,32862.0,2.53351487]
[1625772822171,0.24057544,32865.0,32862.0,2.87844487]
[1625772822322,0.24057544,32865.0,32864.0,4.02303747]
[1625772822472,0.24057544,32865.0,32864.0,4.50418835]
[1625772822773,0.24057544,32865.0,32864.0,4.51678545]
[1625772824121,0.0046,32870.0,32864.0,4.51678545]
[1625772824422,0.0046,32870.0,32869.0,0.24057544]
[1625772824573,0.0046,32870.0,32869.0,4.58529029]
[1625772824723,0.0046,32870.0,32869.0,4.58888858]
[1625772825024,0.0046,32870.0,32869.0,4.59788449]
[1625772825324,0.24057544,32871.0,32869.0,4.59788449]
[1625772825624,0.24057544,32871.0,32870.0,2.51127422]
[1625772825925,0.24057544,32871.0,32870.0,2.52386939]
[1625772826376,0.24057544,32871.0,32870.0,2.76444483]
[1625772826977,0.24057544,32871.0,32870.0,1.42509858]
[1625772827726,0.24057544,32871.0,32870.0,0.25317061]
[1625772828325,0.24057544,32871.0,32870.0,0.24417406]
[1625772828477,0.48115088,32871.0,32870.0,0.24417406]
[1625772828925,0.48115088,32871.0,32870.0,0.24057544]
[1625772830128,0.48115088,32871.0,32870.0,0.48077544]
[1625772830428,0.48115088,32871.0,32870.0,1.65357251]
[1625772830804,0.48115088,32871.0,32870.0,2.99293251]
[1625772830954,0.48115088,32871.0,32870.0,3.00193006]
[1625772832458,0.24057544,32871.0,32870.0,3.00193006]
[1625772833736,0.24057544,32879.0,32870.0,3.00193006]
[1625772833887,0.24057544,32879.0,32870.0,4.50176573]
[1625772834185,0.24057544,32879.0,32877.0,1.165698]
[1625772834336,0.24057544,32879.0,32878.0,1.16528495]
[1625772834486,0.24057544,32879.0,32878.0,1.650034]
[1625772834786,0.24057544,32879.0,32878.0,1.65902921]
[1625772835087,0.24057544,32879.0,32878.0,0.49374426]
[1625772835839,0.24057544,32879.0,32878.0,1.66000555]
[1625772836145,0.24057544,32879.0,32878.0,2.99267544]
[1625772836891,0.24057544,32879.0,32878.0,1.66000555]
[1625772837341,0.24057544,32879.0,32878.0,0.49374426]
[1625772838542,0.24057544,32879.0,32878.0,0.48474905]
[1625772840493,0.52499544,32879.0,32878.0,0.48474905]
[1625772842597,0.52499544,32879.0,32878.0,0.24417361]
[1625772845526,0.24057544,32879.0,32878.0,0.24417361]
[1625772847327,0.24057544,32879.0,32878.0,0.53870361]
[1625772850106,0.24057544,32879.0,32878.0,1.53883224]
[1625772850406,0.24057544,32879.0,32878.0,2.70461013]
[1625772850707,0.24057544,32879.0,32878.0,2.71360502]
[1625772851383,0.24057544,32879.0,32878.0,4.04483859]
[1625772853033,0.24057544,32881.0,32878.0,4.04483859]
[1625772853333,0.0046,32887.0,32879.0,0.01259213]
[1625772853632,0.24057544,32888.0,32883.0,0.99742607]
[1625772854086,0.24057544,32888.0,32884.0,0.00359768]
[1625772854536,0.24057544,32888.0,32887.0,0.48115088]
[1625772854689,0.24057544,32888.0,32887.0,0.77570088]
[1625772854987,0.24057544,32888.0,32887.0,0.77929864]
[1625772867903,1.3146636,32888.0,32887.0,0.77929864]
[1625772868278,1.3146636,32888.0,32887.0,0.00359776]
[1625772868577,1.3146636,32888.0,32881.0,0.0046]
[1625772868578,4.0001114,32888.0,32882.0,0.0035987]
[1625772868726,4.0001114,32888.0,32883.0,0.24057544]
[1625772868876,0.24057544,32888.0,32887.0,0.00359872]
[1625772869178,4.00061254,32888.0,32884.0,0.00359876]
[1625772869330,2.327895,32885.0,32883.0,0.24057544]
[1625772869478,2.570015,32885.0,32883.0,0.24057544]
[1625772869629,1.07443535,32884.0,32883.0,0.24057544]
[1625772869931,1.07443535,32884.0,32883.0,0.24417418]
[1625772870755,1.31501079,32884.0,32883.0,0.24417418]
[1625772871056,0.24057544,32884.0,32883.0,0.24417418]
[1625772875860,1.3152154,32884.0,32883.0,0.24417418]
[1625772876458,0.24057544,32884.0,32883.0,0.24417418]
[1625772876610,1.31524869,32884.0,32883.0,0.24417418]
[1625772876983,2.56901356,32884.0,32883.0,0.24417418]
[1625772877285,2.56901356,32884.0,32883.0,0.00359874]
[1625772877433,4.00192309,32884.0,32883.0,0.00359874]
[1625772877734,4.00192309,32884.0,32879.0,0.00359903]
[1625772877962,4.00192309,32884.0,32883.0,0.0035991]
[1625772878260,4.00192309,32884.0,32879.0,0.00359916]
[1625772878563,0.24057544,32884.0,32883.0,0.00359927]
[1625772878710,0.24057544,32884.0,32880.0,0.00359935]
[1625772878863,4.5728,32881.0,32880.0,0.00359935]
[1625772879011,4.5728,32881.0,32879.0,0.00359931]
[1625772879160,9.05107794,32881.0,32879.0,0.00359931]
[1625772879311,3.04518379,32880.0,32879.0,0.00359931]
[1625772879461,3.34058379,32880.0,32879.0,0.00359931]
[1625772880061,4.77352916,32880.0,32879.0,0.00359931]
[1625772880812,5.0141046,32880.0,32879.0,0.00359931]
[1625772880964,5.0141046,32880.0,32871.0,0.00899904]
[1625772881115,6.62696304,32880.0,32871.0,0.00899904]
[1625772881412,1.79228036,32872.0,32871.0,0.00359974]
[1625772881565,2.05916036,32872.0,32871.0,0.00359974]
[1625772882621,2.06376036,32872.0,32871.0,0.00359974]
[1625772882770,2.54491124,32872.0,32871.0,0.00359974]
[1625772882918,3.79979353,32872.0,32871.0,0.00359974]
[1625772883669,2.54491124,32872.0,32871.0,0.00359974]
[1625772883970,2.72385724,32872.0,32871.0,0.00359974]
[1625772884119,3.79898087,32872.0,32871.0,0.00359974]
[1625772885020,3.79438087,32872.0,32871.0,0.00359974]
[1625772885698,2.54010249,32872.0,32871.0,0.00359974]
[1625772886223,2.54470249,32872.0,32871.0,0.00359974]
[1625772886672,3.79838084,32872.0,32871.0,0.00359974]
[1625772887872,3.79838084,32872.0,32864.0,0.2495757]
[1625772888022,4.416,32868.0,32864.0,0.2495757]
[1625772888322,4.416,32868.0,32865.0,0.00360016]
[1625772888627,5.13215856,32868.0,32865.0,0.00360016]
[1625772888772,0.24057544,32866.0,32865.0,0.00360016]
[1625772889599,0.24517544,32866.0,32865.0,0.00360016]
[1625772890800,0.24057544,32866.0,32865.0,0.00360016]
[1625772893055,0.24517544,32866.0,32865.0,0.00360016]
[1625772894028,0.24517544,32866.0,32862.0,0.00360052]
[1625772894329,0.24517544,32866.0,32865.0,0.00360059]
[1625772894479,0.24517544,32866.0,32863.0,0.00360064]
[1625772894780,0.24517544,32866.0,32859.0,0.00360064]
[1625772894932,0.72172632,32860.0,32859.0,0.00360064]
[1625772895080,1.07526632,32860.0,32858.0,0.68268313]
[1625772895380,1.07526632,32860.0,32859.0,0.00360069]
[1625772895685,5.53846632,32860.0,32859.0,0.00360069]
[1625772895830,5.53846632,32860.0,32858.0,0.00360065]
[1625772896130,5.53846632,32860.0,32859.0,0.00360065]
[1625772896580,5.53846632,32860.0,32858.0,0.00360068]
[1625772897781,5.53846632,32860.0,32857.0,0.00360065]
[1625772897930,1.07526632,32860.0,32859.0,0.00360056]
[1625772898082,0.72172632,32860.0,32859.0,0.00360056]
[1625772898230,0.72172632,32860.0,32857.0,0.67681974]
[1625772898532,0.72172632,32860.0,32857.0,0.67321923]
[1625772898533,4.262,32858.0,32857.0,0.67321923]
[1625772898830,4.50257544,32858.0,32857.0,0.67321923]
[1625772898984,4.50257544,32858.0,32857.0,1.68679156]
[1625772899281,4.50257544,32858.0,32857.0,0.67681976]
[1625772899881,0.24057544,32858.0,32857.0,0.67681976]
[1625772900032,0.24057544,32858.0,32857.0,1.68768588]
[1625772900332,0.24057544,32858.0,32857.0,0.67681976]
[1625772901984,0.24057544,32858.0,32857.0,1.68787731]
[1625772902959,0.24057544,32858.0,32857.0,0.00360053]
[1625772904008,0.24057544,32858.0,32857.0,0.94664525]
[1625772904161,0.24057544,32858.0,32857.0,1.9598654]
[1625772904383,0.24057544,32858.0,32857.0,1.96886651]
[1625772905212,0.24057544,32858.0,32857.0,0.95564636]
[1625772908512,0.24057544,32858.0,32857.0,1.46255541]
[1625772909265,0.24057544,32858.0,32857.0,2.47615776]
[1625772909716,0.24057544,32858.0,32857.0,3.6576278]
[1625772910014,0.24057544,32858.0,32857.0,3.6576274]
[1625772911065,0.24057544,32858.0,32857.0,4.13877828]
[1625772911516,0.24057544,32858.0,32857.0,2.95730824]
[1625772911666,0.24057544,32858.0,32857.0,4.13872419]
[1625772914148,0.24057544,32858.0,32857.0,5.48865987]
[1625772914599,0.24057544,32865.0,32857.0,5.48865987]
[1625772914899,0.24057544,32865.0,32862.0,0.50629411]
[1625772915049,0.24057544,32865.0,32864.0,0.24057544]
[1625772915203,0.24057544,32865.0,32864.0,0.48557544]
[1625772915350,0.24057544,32865.0,32864.0,0.48917539]
[1625772920158,0.24057544,32865.0,32864.0,0.99615318]
[1625772920306,0.24057544,32865.0,32864.0,2.68491116]
[1625772920757,0.24057544,32865.0,32864.0,2.69391019]
[1625772923010,0.24057544,32865.0,32864.0,3.87722021]
[1625772923986,0.24057544,32865.0,32864.0,5.2298136]
[1625772924436,0.24057544,32874.0,32864.0,5.2298136]
[1625772924735,0.24057544,32874.0,32870.0,1.18216646]
[1625772924888,0.24057544,32874.0,32870.0,2.195452]
[1625772925036,0.24057544,32874.0,32873.0,5.62045088]
[1625772925186,0.24057544,32874.0,32873.0,5.96012088]
[1625772925336,0.24057544,32874.0,32873.0,8.15327778]
[1625772925488,0.24057544,32874.0,32873.0,8.16587477]
[1625772926913,0.24057544,32874.0,32873.0,7.15364851]
[1625772927063,0.24057544,32874.0,32873.0,5.97271787]
[1625772928788,0.24057544,32874.0,32873.0,0.83341787]
[1625772928939,0.24057544,32874.0,32873.0,0.25317243]
[1625772929090,0.48115088,32874.0,32873.0,0.01259699]
[1625772929240,1.01823344,32874.0,32873.0,0.00359914]
[1625772929390,2.80838302,32874.0,32873.0,0.00359914]
[1625772929991,2.80838302,32874.0,32869.0,0.00359951]
[1625772930143,4.37432092,32874.0,32869.0,0.00359951]
[1625772930439,1.25329207,32871.0,32869.0,0.00359951]
[1625772930592,0.53720795,32870.0,32869.0,0.00359951]
[1625772931040,0.77778339,32870.0,32869.0,0.00359951]
[1625772931571,0.24057544,32870.0,32869.0,0.00359951]
[1625772932542,0.77803746,32870.0,32869.0,0.00359951]
[1625772933819,1.49493543,32870.0,32869.0,0.00359951]
[1625772934041,2.57022478,32870.0,32869.0,0.00359951]
[1625772934793,1.49493543,32870.0,32869.0,0.00359951]
[1625772935018,1.49493543,32870.0,32869.0,1.19308527]
[1625772935469,1.49493543,32870.0,32869.0,1.20208407]
[1625772937498,1.49493543,32870.0,32869.0,2.22203856]
[1625772940800,2.57171531,32870.0,32869.0,2.22203856]
[1625772942979,1.49493543,32870.0,32869.0,2.22203856]
[1625772944930,2.57172792,32870.0,32869.0,2.22203856]
[1625772945078,7.11592792,32870.0,32869.0,2.22203856]
[1625772945529,8.37217982,32870.0,32869.0,0.52237792]
[1625772945756,9.80799098,32870.0,32869.0,0.01259831]
[1625772945904,9.80799098,32870.0,32869.0,0.00359951]
[1625772946355,9.80799098,32870.0,32867.0,0.00359997]
[1625772946730,5.02627107,32868.0,32867.0,0.00359997]
[1625772947181,5.26684651,32868.0,32867.0,0.00359997]
[1625772947482,5.26684651,32868.0,32866.0,0.00360009]
[1625772947632,5.26684651,32868.0,32866.0,0.34436625]
[1625772947788,0.24057544,32868.0,32867.0,0.00360004]
[1625772948085,5.26653138,32868.0,32867.0,0.00360004]
[1625772948834,5.26653138,32868.0,32866.0,0.00360011]
[1625772948985,5.02571132,32867.0,32865.0,0.34092526]
[1625772949136,5.33764132,32867.0,32865.0,0.34092526]
[1625772949284,5.33764132,32867.0,32864.0,0.85235486]
[1625772949285,4.07103518,32866.0,32864.0,0.85235486]
[1625772949435,3.58992278,32865.0,32864.0,0.34096697]
[1625772949736,1.25658065,32865.0,32864.0,2.21448676]
[1625772949885,1.26118065,32865.0,32864.0,2.21808651]
[1625772950035,0.0046,32865.0,32864.0,3.41844231]
[1625772950186,0.36364169,32865.0,32864.0,3.41844231]
[1625772950486,0.0046,32865.0,32864.0,3.41844231]
[1625772950635,0.3636556,32865.0,32864.0,3.41844231]
[1625772950939,0.0046,32865.0,32864.0,3.41844231]
[1625772951238,0.0046,32865.0,32864.0,3.65901775]
[1625772952063,0.36364438,32865.0,32864.0,3.65901775]
[1625772952364,0.0046,32865.0,32864.0,3.65901775]
[1625772954090,0.48575088,32866.0,32864.0,5.01975665]
[1625772954241,0.48575088,32866.0,32864.0,5.33478665]
[1625772954389,0.48575088,32866.0,32865.0,3.41073648]
[1625772954539,0.48575088,32866.0,32865.0,4.77445803]
[1625772955367,0.48115088,32866.0,32865.0,4.77445803]
[1625772955739,0.48115088,32866.0,32865.0,10.02125803]
[1625772956038,0.0046,32868.0,32865.0,10.02125803]
[1625772956340,0.0046,32868.0,32867.0,4.7638122]
[1625772956639,0.60421701,32870.0,32867.0,4.7638122]
[1625772956792,0.60421701,32870.0,32867.0,4.7764096]
[1625772957090,0.60421701,32870.0,32869.0,3.40089697]
[1625772957091,0.24517544,32870.0,32869.0,3.40089697]
[1625772957239,0.24517544,32870.0,32869.0,3.64147241]
[1625772957389,0.24517544,32870.0,32869.0,5.01359108]
[1625772957839,0.24057544,32870.0,32869.0,5.01359108]
[1625772958817,0.24057544,32870.0,32869.0,3.65406943]
[1625772959116,0.59963477,32870.0,32869.0,3.65406943]
[1625772959265,0.24057544,32870.0,32869.0,3.65406943]
[1625772959566,0.59964226,32870.0,32869.0,3.65406943]
[1625772959715,0.77909274,32870.0,32869.0,3.65406943]
[1625772960016,0.24057544,32870.0,32869.0,5.01349517]
[1625772960466,0.59965375,32870.0,32869.0,3.65406943]
[1625772960766,1.13819158,32870.0,32869.0,3.65406943]
[1625772960917,1.49711323,32870.0,32869.0,3.65406943]
[1625772961221,2.57404696,32870.0,32869.0,2.46375549]
[1625772962643,1.49711323,32870.0,32869.0,2.46375549]
[1625772962792,0.24057544,32870.0,32869.0,2.46375549]
[1625772962943,0.24057544,32870.0,32869.0,3.6559864]
[1625772963468,0.95871215,32870.0,32869.0,2.46375549]
[1625772963844,2.03582748,32870.0,32869.0,2.46375549]
[1625772963997,0.59971611,32870.0,32869.0,3.65325328]
[1625772964446,0.77924391,32870.0,32869.0,3.65325328]
[1625772964976,1.13841238,32870.0,32869.0,3.65325328]
[1625772965503,0.24057544,32870.0,32869.0,5.01714984]
[1625772967004,1.13844976,32870.0,32869.0,3.65325328]
[1625772967304,1.49747496,32870.0,32869.0,3.65325328]
[1625772967679,0.77926413,32870.0,32869.0,3.65325328]
[1625772968129,1.49753451,32870.0,32869.0,3.65325328]
[1625772968733,2.57499683,32870.0,32869.0,3.65325328]
[1625772969859,1.49753451,32870.0,32869.0,3.65325328]
[1625772970160,1.1385476,32870.0,32869.0,5.02015509]
[1625772970312,0.77958764,32870.0,32869.0,5.02015509]
[1625772971064,0.24057544,32870.0,32869.0,5.02015509]
[1625772971363,0.24057544,32870.0,32869.0,6.5570486]
[1625772972190,0.19667544,32870.0,32869.0,6.5570486]
[1625772972339,1.31833986,32873.0,32869.0,6.5570486]
[1625772972491,0.77954996,32873.0,32869.0,6.5570486]
[1625772972790,0.24057544,32873.0,32872.0,6.31046894]
[1625772973243,0.24057544,32873.0,32872.0,6.32306337]
[1625772973391,0.17967704,32876.0,32875.0,3.701]
[1625772973543,0.17967704,32876.0,32875.0,3.95009]
[1625772973690,0.17967704,32876.0,32875.0,8.72563393]
[1625772973915,0.17967704,32876.0,32875.0,8.73822819]
[1625772974518,0.89782541,32877.0,32875.0,8.73822819]
[1625772974519,0.53876622,32877.0,32875.0,8.73822819]
[1625772974815,0.53876622,32877.0,32876.0,3.40976722]
[1625772974966,0.53876622,32877.0,32876.0,3.42236107]
[1625772975266,0.89761778,32877.0,32876.0,3.66293651]
[1625772975491,0.53876458,32877.0,32876.0,3.66293651]
[1625772976168,0.53876458,32877.0,32876.0,5.02678687]
[1625772976471,0.1795995,32877.0,32876.0,3.66293651]
[1625772976922,0.53838296,32882.0,32876.0,6.55555496]
[1625772977221,1.25574865,32883.0,32881.0,4.76246335]
[1625772977222,0.53837481,32883.0,32881.0,4.76246335]
[1625772977371,0.53837481,32883.0,32876.0,0.25316929]
[1625772977372,0.5383601,32884.0,32882.0,5.24161842]
[1625772977521,0.5383601,32884.0,32882.0,5.52494842]
[1625772977674,0.53833609,32885.0,32883.0,4.77170923]
[1625772977975,0.53833609,32885.0,32884.0,3.41122091]
[1625772978428,0.53786549,32886.0,32884.0,7.38580026]
[1625772978727,0.17934822,32886.0,32885.0,2.21933889]
[1625772979027,0.7784277,32887.0,32885.0,2.21933889]
[1625772979177,0.7784277,32887.0,32886.0,2.20631801]
[1625772979328,0.7784277,32887.0,32886.0,2.44689345]
[1625772979705,0.7784277,32887.0,32886.0,2.45948375]
[1625772980152,0.4199177,32887.0,32886.0,2.45948375]
[1625772980453,0.24057544,32887.0,32886.0,1.44118313]
[1625772980678,0.24057544,32887.0,32886.0,2.45742174]
[1625772981281,0.24057544,32887.0,32886.0,1.44118313]